Workbook

Sheet 入力
B1: ファンファン福岡入力 | BA1: サイズコード | BB1: サイズ名 | BD1: 業種コード | BE1: 業種名
B2: 配布開始日 | K2: 曜日 | N2: =IF(ISBLANK(F2),"",F2) ->  | V2: は入力欄 | Z2: Ｆ５・・・選択したセルの全地域一括落とし込み
B3: 広告主 | S3: 様 | Z3: Ｆ６・・・選択したセルの全地域一括クリア | BA3: 9 | BB3: B4 | BC3: =IF($F$5=BB3,BA3,0) -> 0 | BD3: 21 | BE3: 百貨店 | BF3: =IF($N$5=BE3,BD3,0) -> 0 | BJ3: 10
B4: タイトル | V4: は表示欄 | Z4: Ｆ７・・・選択したセルのみ落とし込み | BA4: 4 | BB4: A4 | BC4: =IF($F$5=BB4,BA4,0) -> 0 | BD4: 22 | BE4: ショッピＳ | BF4: =IF($N$5=BE4,BD4,0) -> 0 | BJ4: 50
B5: サイズ | E5: =SUM(BC3:BC49) -> 0 | K5: 業種 | M5: =SUM(BF3:BF36) -> 0 | Z5: Ｆ８・・・選択したセルのみクリア | BA5: 8 | BB5: B3 | BC5: 0 | BD5: 23 | BE5: スーパー | BF5: 0 | BJ5: 100
B6: 部数 | F6: =+集計表!C28 -> 0 | K6: 得意先： | S6: 様 | Z6: ◎セルのダブルクリックで落し込み | BA6: 10 | BB6: B5 | BC6: 0 | BD6: 24 | BE6: ﾎｰﾑｾﾝﾀｰ | BF6: 0
J7: 当社営業担当 | BA7: 3 | BB7: A3 | BC7: 0 | BD7: 25 | BE7: ﾃﾞｨｽｶｳﾝﾄ | BF7: 0
BA8: 7 | BB8: B2 | BC8: 0 | BD8: 26 | BE8: 衣料品 | BF8: 0
BA9: 15 | BB9: B4厚 | BC9: 0 | BD9: 27 | BE9: 家具 | BF9: 0
B10: 配布掛率 | F10: 100.00% | U10: 依頼締切 | X10: 発行週の月曜日 | AE10: （折込依頼前に納品される場合は事前にご連絡下さい） | BA10: 12 | BB10: A4厚 | BC10: 0 | BD10: 28 | BE10: 自動車販売 | BF10: 0
B11: 端数50単位 | F11: 50 | U11: 納品締切 | X11: 発行週の火曜日 午前中 | AE11: （当社指定納品箇所へ納品の場合です） | BA11: 1 | BB11: A1 | BC11: 0 | BD11: 29 | BE11: 自動車関連 | BF11: 0
B12: 端数処理区分 | F12: 3 | BA12: 2 | BB12: A2 | BC12: 0 | BD12: 30 | BE12: 家電 | BF12: 0
BA13: 5 | BB13: A5 | BC13: 0 | BD13: 31 | BE13: その他小売 | BF13: 0
B14: 【配布料金】 | BA14: 6 | BB14: B1 | BC14: 0 | BD14: 32 | BE14: 通信販売 | BF14: 0
B15: 地区 | L15: 新聞 | P15: B4 | R15: B3 | T15: B2 | V15: B1 | X15: B4厚 | Z15: B3厚 | AB15: B3長 | AD15: 管理料等 | BA15: 29 | BB15: B3長 | BC15: 0 | BD15: 33 | BE15: 一般飲食業 | BF15: 0
B16: 福岡県 | F16: 全域 | L16: ファンファン福岡 | P16: 3.00 | R16: 4.20 | T16: 7.70 | V16: 13.00 | X16: 3.50 | Z16: 4.70 | AB16: 4.20 | BA16: 11 | BB16: A3厚 | BC16: 0 | BD16: 34 | BE16: 宅配飲食業 | BF16: 0
BA17: 13 | BB17: A5厚 | BC17: 0 | BD17: 35 | BE17: 医療関係 | BF17: 0
B18: ※異形・定形外・厚紙等は事前にお問合せください。 | BA18: 14 | BB18: B3厚 | BC18: 0 | BD18: 36 | BE18: 薬店 | BF18: 0
BA19: 16 | BB19: B5厚 | BC19: 0 | BD19: 37 | BE19: 健康関連 | BF19: 0
BA20: 35 | BB20: B3+B4 | BC20: 0 | BD20: 38 | BE20: 健康食品 | BF20: 0
BA21: 32 | BB21: B3*2 | BC21: 0 | BD21: 39 | BE21: 金融関係 | BF21: 0
BA22: 17 | BB22: A3変 | BC22: 0 | BD22: 40 | BE22: 保険関係 | BF22: 0
BA23: 18 | BB23: A4変 | BC23: 0 | BD23: 41 | BE23: 理容エステ | BF23: 0
BA24: 19 | BB24: A5変 | BC24: 0 | BD24: 42 | BE24: サービス業 | BF24: 0
BA25: 20 | BB25: B3変 | BC25: 0 | BD25: 43 | BE25: パチンコ | BF25: 0
BA26: 21 | BB26: B4変 | BC26: 0 | BD26: 44 | BE26: 通信関連 | BF26: 0
BA27: 22 | BB27: B5変 | BC27: 0 | BD27: 45 | BE27: マンション | BF27: 0
BA28: 23 | BB28: A3折 | BC28: 0 | BD28: 46 | BE28: 戸建て | BF28: 0
BA29: 24 | BB29: A4折 | BC29: 0 | BD29: 47 | BE29: 増改築 | BF29: 0
BA30: 25 | BB30: A5折 | BC30: 0 | BD30: 48 | BE30: 教育関連 | BF30: 0
B31: 【特記事項】 | BA31: 26 | BB31: B3折 | BC31: 0 | BD31: 49 | BE31: 求人 | BF31: 0
BA32: 27 | BB32: B4折 | BC32: 0 | BD32: 50 | BE32: 連合広告 | BF32: 0
BA33: 28 | BB33: B5折 | BC33: 0 | BD33: 51 | BE33: ﾘｻｲｸﾙ･回収 | BF33: 0
BA34: 30 | BB34: B4長 | BC34: 0 | BD34: 52 | BE34: 不動産仲介 | BF34: 0
BA35: 31 | BB35: B5長 | BC35: 0 | BD35: 53 | BE35: 官公庁他 | BF35: 0
BA36: 33 | BB36: B4折厚 | BC36: 0 | BD36: 60 | BE36: その他 | BF36: 0
BA37: 34 | BB37: B2+B3 | BC37: 0
BA38: 36 | BB38: A1異 | BC38: 0
BA39: 37 | BB39: A2異 | BC39: 0
BA40: 38 | BB40: A3異 | BC40: 0
BA41: 39 | BB41: A4異 | BC41: 0
BA42: 40 | BB42: A5異 | BC42: 0
BA43: 41 | BB43: B1異 | BC43: 0
BA44: 42 | BB44: B2異 | BC44: 0
BA45: 43 | BB45: B3異 | BC45: 0
BA46: 44 | BB46: B4異 | BC46: 0
BA47: 45 | BB47: B5異 | BC47: 0
BA48: 99 | BB48: 特殊 | BC48: 0
BB49: その他 | BC49: 0
BA50: 46
BA51: 47
BA52: 48
BA53: 49
BA54: 50
BA55: 51
BA56: 52
BA57: 53
BA58: 54
BA59: 55
BA60: 56
BA61: 57
BA62: 58
BA63: 59
BA64: 60
BA65: 61
BA66: 62
BA67: 63
BA68: 64
BA69: 65
BA70: 66
BA71: 67
BA72: 68
BA73: 69
BA74: 70
BA75: 71
BA76: 72
BA77: 73
BA78: 74
BA79: 75
BA80: 76
BA81: 77
BA82: 78
BA83: 79
BA84: 80
BA85: 81
BA86: 82
BA87: 83
BA88: 84
BA89: 85
BA90: 86
BA91: 87
BA92: 88
BA93: 89
BA94: 90
BA95: 91
BA96: 92
BA97: 93
BA98: 94
BA99: 95
BA100: 96
BA101: 97
BA102: 98

Sheet 集計表
A1: *** フ ァ ン フ ァ ン 福 岡 集 計 表 ***
M2: ㈱西日本新聞総合オリコミ
M3: 〒813-0018 福岡県福岡市東区香椎浜ふ頭２丁目３番８号
M4: 電 話 ０９２－９８６－９７７７
A5: 福岡都市圏 | M5: ＦＡＸ ０９２－９８６－９７６１
A6: 地 区 名 | B6: 合 計 | D6: ファンファン福岡
B7: 部数 | C7: 折込部数 | D7: 部数 | E7: 折込部数
A8: 福岡市東区 | B8: =SUM(D8,F8,H8,J8,L8) -> 41,400 | C8: 0 | D8: =+'東区～那珂川市'!G30 -> 41,400 | E8: =+'東区～那珂川市'!H31 -> 0
A9: 博多区 | B9: 37,750 | C9: 0 | D9: =+'東区～那珂川市'!M30 -> 37,750 | E9: =+'東区～那珂川市'!N31 -> 0
A10: 中央区 | B10: 44,480 | C10: 0 | D10: =+'東区～那珂川市'!S30 -> 44,480 | E10: =+'東区～那珂川市'!T31 -> 0
A11: 南区 | B11: 61,350 | C11: 0 | D11: =+'東区～那珂川市'!Y30 -> 61,350 | E11: =+'東区～那珂川市'!Z31 -> 0
A12: 城南区 | B12: 26,450 | C12: 0 | D12: =+'東区～那珂川市'!AE30 -> 26,450 | E12: =+'東区～那珂川市'!AF31 -> 0
A13: 西区 | B13: 28,400 | C13: 0 | D13: =+'東区～那珂川市'!AK30 -> 28,400 | E13: =+'東区～那珂川市'!AL31 -> 0
A14: 早良区 | B14: 45,700 | C14: 0 | D14: =+'東区～那珂川市'!G55 -> 45,700 | E14: =+'東区～那珂川市'!H56 -> 0
A15: 福岡市合計 | B15: =SUM(B8:B14) -> 285,530 | C15: =SUM(E15,G15,I15,K15,M15) -> 0 | D15: =SUM(D8:D14) -> 285,530 | E15: =SUM(E8:E14) -> 0
A16: 筑紫野市 | B16: =SUM(D16,F16,H16,J16,L16) -> 4,400 | C16: 0 | D16: =+'東区～那珂川市'!M55 -> 4,400 | E16: =+'東区～那珂川市'!N56 -> 0
A17: 春日市 | B17: 1,000 | C17: 0 | D17: =+'東区～那珂川市'!S55 -> 1,000 | E17: =+'東区～那珂川市'!T56 -> 0
A18: 大野城市 | B18: 7,400 | C18: 0 | D18: =+'東区～那珂川市'!Y55 -> 7,400 | E18: =+'東区～那珂川市'!Z56 -> 0
A19: 太宰府市 | B19: 1,000 | C19: 0 | D19: =+'東区～那珂川市'!AE55 -> 1,000 | E19: =+'東区～那珂川市'!AF56 -> 0
A20: 那珂川市 | B20: 700 | C20: 0 | D20: =+'東区～那珂川市'!AK55 -> 700 | E20: =+'東区～那珂川市'!AL56 -> 0
A21: 福津市 | B21: 0 | C21: 0 | D21: =+'福津市～朝倉市郡'!G55 -> 0 | E21: =+'福津市～朝倉市郡'!H56 -> 0
A22: 古賀市 | B22: 0 | C22: 0 | D22: =+'福津市～朝倉市郡'!M55 -> 0 | E22: =+'福津市～朝倉市郡'!N56 -> 0
A23: 粕屋郡 | B23: 0 | C23: 0 | D23: =+'福津市～朝倉市郡'!S55 -> 0 | E23: =+'福津市～朝倉市郡'!T56 -> 0
A24: 糸島市 | B24: 0 | C24: 0 | D24: =+'福津市～朝倉市郡'!Y55 -> 0 | E24: =+'福津市～朝倉市郡'!Z56 -> 0
A25: 宗像市 | B25: 0 | C25: 0 | D25: =+'福津市～朝倉市郡'!AE55 -> 0 | E25: =+'福津市～朝倉市郡'!AF56 -> 0
A26: 朝倉市 | B26: 0 | C26: 0 | D26: =+'福津市～朝倉市郡'!AK55 -> 0 | E26: =+'福津市～朝倉市郡'!AL56 -> 0
A27: 福岡市外合計 | B27: =SUM(B16:B26) -> 14,500 | C27: =SUM(E27,G27,I27,K27,M27) -> 0 | D27: =SUM(D16:D26) -> 14,500 | E27: =SUM(E16:E26) -> 0
A28: 合計 | B28: =SUM(B27,B15) -> 300,030 | C28: =SUM(C15,C27) -> 0 | D28: =SUM(D27,D15) -> 300,030 | E28: =SUM(E15,E27) -> 0
L29: 2025-04-01
M31: 2025-04-01

Sheet 東区～那珂川市
B1: ファンファン福岡配布部数表(1-1) | AK1: 2025-04-01
AI2: ㈱西日本新聞総合オリコミ | AK2: 担当： | AL2: =+入力!N7 -> 0
B3: 配布開始日 | D3: 曜 日 | G3: 広 告 主 ／ タ イ ト ル | S3: サイズ | T3: 業種 | V3: 枚 数 | AM3: 福岡県福岡市東区香椎浜ふ頭２丁目３番８号
B4: =+入力!F2 -> 00:00:00 | D4: =B4 -> 0 | G4: =CONCATENATE(入力!F3,入力!S3)&" / "&入力!F4 -> 様 / | S4: =+入力!F5 -> 0 | T4: =+入力!N5 -> 0 | V4: =+入力!F6 -> 0 | AM4: 電 話 ０９２－９８６－９７７７
AB5: 得意先： | AE5: =+入力!M6 -> 0 | AG5: 様 | AM5: ＦＡＸ ０９２－９８６－９７６１
D7: 東区 | J7: 博多区 | P7: 中央区 | V7: 南区 | AB7: 城南区 | AH7: 西区
E8: 販売店名 | F8: 共通コード | G8: 部 数 | H8: 折込部数 | I8: 備 | K8: 販売店名 | L8: 共通コード | M8: 部 数 | N8: 折込部数 | O8: 備 | Q8: 販売店名 | R8: 共通コード | S8: 部 数 | T8: 折込部数 | U8: 備 | W8: 販売店名 | X8: 共通コード | Y8: 部 数 | Z8: 折込部数 | AA8: 備 | AC8: 販売店名 | AD8: 共通コード | AE8: 部 数 | AF8: 折込部数 | AG8: 備 | AI8: 販売店名 | AK8: 部 数 | AL8: 折込部数 | AM8: 備
A9: 40131 | B9: ファンファン福岡 | E9: 和白北(三苫) | F9: 001857 | G9: 3,000 | K9: 空港通 | L9: 001907 | M9: 4,200 | Q9: 天神・舞鶴 | R9: 009504 | S9: 1,770 | W9: 高宮 | X9: 001991 | Y9: 5,050 | AC9: 別府 | AD9: 002069 | AE9: 5,950 | AI9: 姪浜 | AJ9: 002039 | AK9: 3,800
E10: 和白 | F10: 001858 | G10: 2,100 | K10: 比恵 | L10: 008775 | M10: 6,000 | Q10: 薬院・けやき通り | R10: 009505 | S10: 9,850 | W10: 野間 | X10: 001992 | Y10: 2,500 | AC10: 笹丘･田島 | AD10: 008976 | AE10: 2,500 | AI10: 姪浜駅南 ･愛宕浜 | AJ10: 008670 | AK10: 14,500
E11: 香住丘 | F11: 001859 | G11: 4,600 | K11: はかた | L11: 010210 | M11: 17,100 | Q11: 小笹 | R11: 001959 | S11: 2,700 | W11: 長丘 | X11: 001993 | Y11: 2,400 | AC11: 長尾・片江 | AD11: 002072 | AE11: 6,100 | AI11: 福重 | AJ11: 009747 | AK11: 2,500
E12: 香椎浜 | F12: 001861 | G12: 6,300 | K12: 板付 | L12: 008981 | M12: 3,900 | Q12: 大濠･大手門 | R12: 010033 | S12: 16,380 | W12: 大楠・平尾南 | X12: 008826 | Y12: 20,950 | AC12: 七隈・茶山 | AD12: 008218 | AE12: 10,000 | AI12: 周船寺・波多江 | AJ12: 010025 | AK12: 1,200
E13: 香椎 | F13: 001862 | G13: 2,600 | K13: 雑餉隈 | L13: 001916 | M13: 6,550 | Q13: 六本松 | R13: 001963 | S13: 4,000 | W13: 三宅 | X13: 001997 | Y13: 10,100 | AC13: 樋井川 | AD13: 002075 | AE13: 800 | AI13: 今宿 | AJ13: 002047 | AK13: 2,950
E14: 香椎東 | F14: 001871 | G14: 2,000 | Q14: 六本松南 | R14: 009722 | S14: 4,580 | W14: 井尻南･弥永･老司 | X14: 009898 | Y14: 8,750 | AC14: 堤 | AD14: 002076 | AE14: 1,100 | AI14: 拾六町上山門 | AJ14: 009430 | AK14: 550
E15: 名島・千早西 | F15: 010209 | G15: 4,300 | Q15: 薬院浄水 | R15: 009756 | S15: 5,200 | W15: 花畑･長住 | X15: 002002 | Y15: 11,600 | AI15: 九大学研都市 | AJ15: 009578 | AK15: 2,900
E16: 多々良・青葉・香椎台 | F16: 010207 | G16: 2,150
E17: 筥松 | F17: 001869 | G17: 6,500
E18: 箱崎 | F18: 001870 | G18: 7,850
H28: =G28 -> 0
H29: =G29 -> 0
B30: 部 数 計 | C30: =SUM(G30,M30,S30,Y30,AE30,AK30) -> 239,830 | G30: =SUM(G9:G29) -> 41,400 | M30: =SUM(M9:M29) -> 37,750 | S30: =SUM(S9:S29) -> 44,480 | Y30: =SUM(Y9:Y29) -> 61,350 | AE30: =SUM(AE9:AE29) -> 26,450 | AK30: =SUM(AK9:AK29) -> 28,400
B31: 折込部数計 | C31: =SUM(H31,N31,T31,Z31,AF31,AL31) -> 0 | H31: =SUM(H9:H29) -> 0 | N31: =SUM(N9:N29) -> 0 | T31: =SUM(T9:T29) -> 0 | Z31: =SUM(Z9:Z29) -> 0 | AF31: =SUM(AF9:AF29) -> 0 | AL31: =SUM(AL9:AL29) -> 0
D32: 早良区 | J32: 筑紫野市 | P32: 春日市 | V32: 大野城市 | AB32: 太宰府市 | AH32: 那珂川市
E33: 販売店名 | F33: 共通コード | G33: 部 数 | H33: 折込部数 | I33: 備 | K33: 販売店名 | L33: 共通コード | M33: 部 数 | N33: 折込部数 | O33: 備 | Q33: 販売店名 | R33: 共通コード | S33: 部 数 | T33: 折込部数 | U33: 備 | W33: 販売店名 | X33: 共通コード | Y33: 部 数 | Z33: 折込部数 | AA33: 備 | AC33: 販売店名 | AD33: 共通コード | AE33: 部 数 | AF33: 折込部数 | AG33: 備 | AI33: 販売店名 | AK33: 部 数 | AL33: 折込部数 | AM33: 備
A34: 40131 | B34: ファンファン福岡 | E34: 西新･鳥飼 | F34: 002091 | G34: 16,500 | K34: 二日市東 | L34: 002458 | M34: 3,700 | Q34: 紅葉丘西･春日北部 | R34: 008656 | S34: 1,000 | W34: 白木原 | X34: 002499 | Y34: 2,700 | AC34: 水城 | AD34: 008587 | AE34: 1,000 | AI34: 那珂川 | AJ34: 002588 | AK34: 700
E35: 藤崎 | F35: 002093 | G35: 12,500 | K35: 朝倉街道 | L35: 002459 | M35: 700 | W35: 大野南 | X35: 002503 | Y35: 700
E36: 飯倉 | F36: 002094 | G36: 2,400 | W36: 下大利 | X36: 008586 | Y36: 1,500
E37: 原 | F37: 002103 | G37: 2,200 | W37: 春日原・大野城S | X37: 009881 | Y37: 2,500
E38: 原南 | F38: 002096 | G38: 1,500
E39: 原北 | F39: 002101 | G39: 5,800
E40: 田隈･四箇田 | F40: 002098 | G40: 1,800
E41: 有田･野芥 | F41: 002100 | G41: 3,000
H44: =G44 -> 0
B55: 部 数 計 | C55: =SUM(G55,M55,S55,Y55,AE55,AK55) -> 60,200 | G55: =SUM(G34:G54) -> 45,700 | M55: =SUM(M34:M54) -> 4,400 | S55: =SUM(S34:S54) -> 1,000 | Y55: =SUM(Y34:Y54) -> 7,400 | AE55: =SUM(AE34:AE54) -> 1,000 | AK55: =SUM(AK34:AK54) -> 700
B56: 折込部数計 | C56: =SUM(H56,N56,T56,Z56,AF56,AL56) -> 0 | H56: =SUM(H34:H54) -> 0 | N56: =SUM(N34:N54) -> 0 | T56: =SUM(T34:T54) -> 0 | Z56: =SUM(Z34:Z54) -> 0 | AF56: =SUM(AF34:AF54) -> 0 | AL56: =SUM(AL34:AL54) -> 0
B57: ページ計 | C57: =SUM(H57,N57,T57,Z57,AF57,AL57) -> 0 | G57: =SUM(G30,G55) -> 87,100 | H57: =SUM(H56,H32) -> 0 | M57: =SUM(M30,M55) -> 42,150 | N57: =SUM(N56,N32) -> 0 | S57: =SUM(S30,S55) -> 45,480 | T57: =SUM(T56,T32) -> 0 | Y57: =SUM(Y30,Y55) -> 68,750 | Z57: =SUM(Z56,Z32) -> 0 | AE57: =SUM(AE30,AE55) -> 27,450 | AF57: =SUM(AF56,AF32) -> 0 | AK57: =SUM(AK30,AK55) -> 29,100 | AL57: =SUM(AL56,AL32) -> 0
B59: 備考
B60: (指示書記入欄)
C67: 【変更履歴】 | D67: R6.5壱岐団地・拾六町・二日市・春日西取扱不可。 | P67: ●R7.4.多々良を多々良・青葉・香椎台に名変
D68: R6.6周船寺廃店し、九大学研都市と周船寺・波多江（新設）へ分割。 | P68: ●R7.4名島を名島・千早西に名変
D69: R6.8.荒戸と今川を廃店し、大手門に全域接収後、大濠・大手門に名変 | P69: ●R7.4. 博多駅前と博多駅南を統合しはかたに名変
D70: R6.8大橋・井尻を廃店し、「三宅」「大楠・平尾南」｢井尻南･弥永･老司｣に分割移動

Sheet 福津市～朝倉市郡 (hidden)
B1: ファンファン福岡折込部数表(7-1) | AK1: 2016-04-01
AI2: ㈱西日本新聞総合オリコミ | AK2: 担当： | AL2: =+入力!N7 -> 0
B3: 折 込 日 | D3: 曜 日 | G3: 広 告 主 ／ タ イ ト ル | S3: サイズ | T3: 業種 | V3: 枚 数 | AM3: 福岡県福岡市東区香椎浜ふ頭２丁目３番８号 | AO3: =SUM(C57,#REF!,#REF!,#REF!,#REF!,#REF!,#REF!) -> 
B4: =+入力!F2 -> 00:00:00 | D4: =B4 -> 0 | G4: =CONCATENATE(入力!F3,入力!S3)&" / "&入力!F4 -> 様 / | S4: =+入力!F5 -> 0 | T4: =+入力!N5 -> 0 | V4: =+入力!F6 -> 0 | AM4: 電 話 ０９２－９８６－９７７７
AB5: 代理店： | AE5: =+入力!M6 -> 0 | AG5: 様 | AM5: ＦＡＸ ０９２－９８６－９７６１
D7: 福津市 | J7: 古賀市 | P7: 糟屋郡 | V7: 糸島市 | AB7: 宗像市 | AH7: 朝倉市郡
E8: 販売店名 | F8: 共通コード | G8: 部 数 | H8: 折込部数 | I8: 備 | K8: 販売店名 | L8: 共通コード | M8: 部 数 | N8: 折込部数 | O8: 備 | Q8: 販売店名 | R8: 共通コード | S8: 部 数 | T8: 折込部数 | U8: 備 | W8: 販売店名 | X8: 共通コード | Y8: 部 数 | Z8: 折込部数 | AA8: 備 | AC8: 販売店名 | AD8: 共通コード | AE8: 部 数 | AF8: 折込部数 | AG8: 備 | AI8: 販売店名 | AK8: 部 数 | AL8: 折込部数 | AM8: 備
A9: 40131
H34: =G34 -> 0
H35: 0
H36: 0
H37: 0
H38: 0
H39: 0
H40: 0
H41: 0
H42: 0
H43: 0
H44: 0
H45: 0
H46: 0
B55: 部 数 計 | C55: =SUM(G55,M55,S55,Y55,AE55,AK55) -> 0 | G55: =SUM(G9:G54) -> 0 | M55: =SUM(M9:M54) -> 0 | S55: =SUM(S9:S54) -> 0 | Y55: =SUM(Y9:Y54) -> 0 | AE55: =SUM(AE9:AE54) -> 0 | AK55: =SUM(AK9:AK54) -> 0
B56: 折込部数計 | C56: =SUM(H56,N56,T56,Z56,AF56,AL56) -> 0 | H56: =SUM(H9:H54) -> 0 | N56: =SUM(N9:N54) -> 0 | T56: =SUM(T9:T54) -> 0 | Z56: =SUM(Z9:Z54) -> 0 | AF56: =SUM(AF9:AF54) -> 0 | AL56: =SUM(AL9:AL54) -> 0
B57: ページ計 | C57: =SUM(H57,N57,T57,Z57,AF57,AL57) -> 0 | G57: =SUM(G31,G55) -> 0 | H57: =SUM(H56,H32) -> 0 | M57: =SUM(M31,M55) -> 0 | N57: =SUM(N56,N32) -> 0 | S57: =SUM(S31,S55) -> 0 | T57: =SUM(T56,T32) -> 0 | Y57: =SUM(Y31,Y55) -> 0 | Z57: =SUM(Z56,Z32) -> 0 | AE57: =SUM(AE31,AE55) -> 0 | AF57: =SUM(AF56,AF32) -> 0 | AK57: =SUM(AK31,AK55) -> 0 | AL57: =SUM(AL56,AL32) -> 0
B59: 備考
B60: (指示書記入欄)
C67: 【変更履歴】
